fUSD/lending_fUSD_20240420
["ID","MTS","AMOUNT","RATE_DAILY","PERIOD"]
[323084822,1713633052605,-263.164623,0.00016607,2]
[323084823,1713633052614,-248.48861,0.00016607,2]
[323084824,1713633052623,-248.48861,0.00016607,2]
[323084825,1713633052632,-917.810691,0.00016607,2]
[323084826,1713633052642,-917.810691,0.00016607,2]
[323084827,1713633052651,-151.0,0.00016607,2]
[323084828,1713633052661,-151.0,0.00016607,2]
[323084829,1713633052671,-151.0,0.00016607,2]
[323084830,1713633052681,-351.859403,0.00016607,2]
[323084831,1713633052691,-351.859403,0.00016607,2]
[323084832,1713633052700,-692.155954,0.00016607,2]
[323084833,1713633052709,-692.155954,0.00016607,2]
[323084834,1713633052719,-223.787651,0.00016607,2]
[323084835,1713633052728,-223.787651,0.00016607,2]
[323084836,1713633052737,-2203.99683886,0.00016607,2]
[323084837,1713633052747,-1000.0,0.00016617,2]
[323084838,1713633052759,-1000.0,0.00016617,2]
[323084839,1713633052770,-1000.0,0.00016617,2]
[323084840,1713633052780,-1000.0,0.00016617,2]
[323084841,1713633052790,-1000.0,0.00016617,2]
[323084842,1713633052800,-1000.0,0.00016617,2]
[323084843,1713633052809,-1000.0,0.00016617,2]
[323084844,1713633052819,-1000.0,0.00016617,2]
[323084845,1713633052829,-1000.0,0.00016617,2]
[323084846,1713633052841,-1000.0,0.00016617,2]
[323084847,1713633052850,-1000.0,0.00016617,2]
[323084848,1713633052860,-1000.0,0.00016617,2]
[323084849,1713633052870,-1000.0,0.00016617,2]
[323084850,1713633052880,-619.8262,0.00016617,2]
[323084851,1713633052889,-151.0,0.00016627,2]
[323084852,1713633052899,-505.405145,0.00016627,2]
[323084853,1713633052909,-505.405145,0.00016627,2]
[323084854,1713633052918,-151.0,0.00016627,2]
[323084855,1713633052928,-239.713806,0.00016627,2]
[323084856,1713633052938,-239.713806,0.00016627,2]
[323084857,1713633052950,-543.06027,0.00016627,2]
[323084858,1713633052964,-543.06027,0.00016627,2]
[323084859,1713633052974,-454.670576,0.00016627,2]
[323084860,1713633052984,-202.544589,0.00016627,2]
[323084861,1713633052994,-454.670576,0.00016627,2]
[323084862,1713633053006,-202.544589,0.00016627,2]
[323084863,1713633053015,-151.0,0.00016627,2]
[323084864,1713633053025,-228.316343,0.00016627,2]
[323084865,1713633053035,-228.316343,0.00016627,2]
[323084866,1713633053045,-151.91062,0.00016627,2]
[323084867,1713633053056,-387.208655,0.00016627,2]
[323084868,1713633053066,-151.91062,0.00016627,2]
[323084869,1713633053076,-387.208655,0.00016627,2]
[323084870,1713633053086,-169.0,0.0001667,2]
[323084871,1713633053096,-800.0,0.00016685,2]
[323084872,1713633053105,-151.0,0.00016685,2]
[323084873,1713633053114,-151.0,0.00016685,2]
[323084874,1713633053123,-153.840647,0.00016685,2]
[323084875,1713633053133,-151.0,0.00016685,2]
[323084876,1713633053143,-151.0,0.00016685,2]
[323084877,1713633053153,-153.377219,0.00016685,2]
[323084878,1713633053162,-151.849426,0.00016685,2]
[323084879,1713633053172,-151.0,0.00016685,2]
[323084880,1713633053182,-151.0,0.00016685,2]
[323084881,1713633053192,-151.0,0.00016685,2]
[323084882,1713633053202,-151.0,0.00016685,2]
[323084883,1713633053211,-151.0,0.00016685,2]
[323084884,1713633053221,-151.0,0.00016685,2]
[323084885,1713633053230,-213.549739,0.00016685,2]
[323084886,1713633053240,-151.0,0.00016685,2]
[323084887,1713633053250,-340.325733,0.00016685,2]
[323084888,1713633053261,-238.033258,0.00016685,2]
[323084889,1713633053271,-340.325733,0.00016685,2]
[323084890,1713633053281,-151.0,0.00016685,2]
[323084891,1713633053291,-151.0,0.00016685,2]
[323084892,1713633053302,-151.0,0.00016685,2]
[323084893,1713633053311,-251.100736,0.00016685,2]
[323084894,1713633053321,-480.094336,0.00016685,2]
[323084895,1713633053331,-251.100736,0.00016685,2]
[323084896,1713633053342,-151.0,0.00016685,2]
[323084897,1713633053352,-480.094336,0.00016685,2]
[323084898,1713633053362,-151.0,0.00016685,2]
[323084899,1713633053372,-151.0,0.00016685,2]
[323084900,1713633053382,-151.0,0.00016685,2]
[323084901,1713633053392,-151.0,0.00016685,2]
[323084902,1713633053402,-1175.6332147,0.00016698,2]
[323084903,1713633053412,-10785.8229464,0.00016698,2]
[323084904,1713633053422,-104126.25612177,0.000167,2]
[323084905,1713633053435,-6504.4,0.000167,2]
[323084906,1713633053447,-1586.89418128,0.000167,2]
[323084907,1713633053460,-8247.49088147,0.000167,2]
[323084908,1713633053472,-382.37397966,0.000167,2]
[323084913,1713633328536,200.0,0.00015068,10]
[323084914,1713633328590,200.0,0.00015342,10]
[323084915,1713633328815,200.74873786,0.00015616,10]
[323084916,1713633386918,9092.608,0.000224,30]
[323084929,1713633944841,1000.0,0.00022,30]
[323084991,1713634231513,-216.04,0.00012833,2]
[323084992,1713634231523,-241.04997388,0.00014,2]
[323084993,1713634231574,-1574.7093825,0.00014,2]
[323084994,1713634231586,-434.24064362,0.00014,2]
[323084995,1713634231596,-542.63145381,0.000145,2]
[323084996,1713634231635,-137.65824619,0.000145,2]
[323084997,1713634231645,-209.8975,0.000145,2]
[323084998,1713634231654,-434.6079,0.000145,2]
[323084999,1713634231664,-2108.31329164,0.0001459,2]
[323085000,1713634231675,-1047.56686,0.0001459,2]
[323085001,1713634231750,-4285.03886037,0.0001459,2]
[323085002,1713634231759,-349.56,0.0001459,3]
[323085003,1713634231768,-197.86380696,0.00014598,2]
[323085004,1713634231778,-155.18316179,0.00014598,2]
[323085005,1713634231787,-192.35401933,0.00014598,2]
[323085006,1713634231799,-23.61784022,0.00014598,2]
[323085007,1713634231809,-1994.15387109,0.00014598,2]
[323085008,1713634231819,-302.35813284,0.00014598,2]
[323085009,1713634231828,-304.86243796,0.00014598,2]
[323085010,1713634231837,-212.09460239,0.00014598,2]
[323085011,1713634231847,-1241.03910676,0.00014598,2]
[323085012,1713634231857,-362.23328882,0.00014599,2]
[323085013,1713634231866,-194.61707769,0.00014599,2]
[323085014,1713634231875,-10353.02363723,0.000146,2]
[323085017,1713634231886,-9928.91898681,0.000146,2]
[323085019,1713634231898,-1684.59202001,0.000146,2]
[323085021,1713634231909,-312.1,0.000146,2]
[323085023,1713634231920,-271.29633934,0.000146,2]
[323085025,1713634231931,-1087.0502,0.000146,2]
[323085037,1713634237460,-666.90405558,0.000146,2]
[323085038,1713634237474,-15726.14046103,0.000146,2]
[323085039,1713634237487,-6365.33254453,0.000146,2]
[323085040,1713634237544,-3073.7629553,0.000146,2]
[323085041,1713634237606,-1798.97856861,0.000146,2]
[323085042,1713634237666,-57224.33981149,0.000146,2]
[323085043,1713634237729,-84850.93322007,0.000146,2]
[323085044,1713634237749,-4233.4806,0.000146,2]
[323085045,1713634237759,-2244.87422582,0.000146,2]
[323085046,1713634237769,-244238.4421,0.000147,2]
[323085047,1713634237779,-18011.3888777,0.000147,2]
[323085048,1713634237788,-499.99,0.000147,2]
[323085049,1713634237798,-150.99,0.000147,2]
[323085050,1713634237807,-676.31,0.000147,2]
[323085051,1713634237817,-937.82,0.00014711,2]
[323085052,1713634237827,-259.87,0.00014723,2]
[323085053,1713634237836,-150.99,0.00014723,2]
[323085054,1713634237846,-1279.15,0.00014731,3]
[323085056,1713634237856,-3118.85,0.00014835,2]
[323085058,1713634237865,-213.4,0.00014859,2]
[323085060,1713634237875,-715.2,0.00014883,2]
[323085062,1713634237885,-155.76,0.0001491,2]
[323085063,1713634237894,-156.06193884,0.00014998,2]
[323085065,1713634237903,-190.34598721,0.00014999,2]
[323085067,1713634237913,-426.81421058,0.00015,2]
[323085069,1713634237922,-151.04,0.00015034,2]
[323085071,1713634237931,-151.04,0.00015044,2]
[323085073,1713634237941,-151.04,0.00015053,2]
[323085075,1713634237951,-151.04,0.00015063,2]
[323085077,1713634237960,-393.43620425,0.00015068,2]
[323085079,1713634237970,-500.0,0.00015068,2]
[323085081,1713634237979,-500.0,0.00015068,2]
[323085083,1713634237990,-500.0,0.00015068,2]
[323085085,1713634237999,-500.0,0.00015068,2]
[323085087,1713634238008,-500.0,0.00015068,2]
[323085089,1713634238017,-500.0,0.00015068,2]
[323085091,1713634238026,-150.0,0.00015068,2]
[323085093,1713634238035,-500.0,0.00015068,2]
[323085095,1713634238045,-723.48,0.00015068,2]
[323085097,1713634238055,-500.0,0.00015068,2]
[323085099,1713634238065,-500.0,0.00015068,2]
[323085101,1713634238074,-500.0,0.00015068,2]
[323085103,1713634238084,-500.0,0.00015068,2]
[323085105,1713634238094,-500.0,0.00015068,2]
[323085107,1713634238104,-503.25,0.00015068,2]
[323085109,1713634238113,-2100.05,0.00015068,2]
[323085111,1713634238123,-500.0,0.00015068,2]
[323085113,1713634238132,-500.0,0.00015068,2]
[323085115,1713634238141,-500.0,0.00015068,2]
[323085116,1713634238150,-612.83,0.00015068,2]
[323085118,1713634238160,-500.0,0.00015068,2]
[323085120,1713634238169,-500.0,0.00015068,2]
[323085122,1713634238178,-500.0,0.00015068,2]
[323085125,1713634238187,-500.0,0.00015068,2]
[323085127,1713634238197,-500.0,0.00015068,2]
[323085128,1713634238206,-500.0,0.00015068,2]
[323085130,1713634238216,-248.48882508,0.00015068,2]
[323085132,1713634238225,-500.0,0.00015068,2]
[323085134,1713634238235,-542.15,0.00015068,2]
[323085136,1713634238244,-526.1,0.00015068,2]
[323085139,1713634238254,-275.35481406,0.00015068,2]
[323085140,1713634238263,-500.0,0.00015068,2]
[323085142,1713634238272,-210.67607916,0.00015068,2]
[323085164,1713634238486,-375.10392084,0.00015068,2]
[323085166,1713634238496,-500.0,0.00015068,2]
[323085168,1713634238505,-500.0,0.00015068,2]
[323085170,1713634238514,-500.0,0.00015068,2]
[323085172,1713634238524,-307.54,0.00015068,2]
[323085174,1713634238533,-151.04,0.00015072,2]
[323085176,1713634238542,-151.04,0.00015081,2]
[323085177,1713634238552,-151.04,0.00015091,2]
[323085179,1713634238562,-216.04,0.00015097,2]
[323085182,1713634238571,-151.04,0.000151,2]
[323085183,1713634238580,-151.04,0.0001511,2]
[323085185,1713634238590,-170.03,0.00015123,2]
[323085187,1713634238600,-2007.668549,0.0001528,2]
[323085189,1713634238609,-500.0,0.00015342,2]
[323085191,1713634238619,-500.0,0.00015342,2]
[323085193,1713634238628,-500.0,0.00015342,2]
[323085195,1713634238637,-500.0,0.00015342,2]
[323085197,1713634238647,-500.0,0.00015342,2]
[323085199,1713634238657,-150.0,0.00015342,2]
[323085201,1713634238666,-500.0,0.00015342,2]
[323085203,1713634238675,-723.48,0.00015342,2]
[323085205,1713634238685,-500.0,0.00015342,2]
[323085207,1713634238695,-500.0,0.00015342,2]
[323085209,1713634238704,-447.13,0.00015342,2]
[323085211,1713634238713,-255.23,0.00015342,2]
[323085213,1713634238723,-591.28,0.00015342,2]
[323085215,1713634238734,-2100.05,0.00015342,2]
[323085217,1713634238744,-405.73,0.00015342,2]
[323085219,1713634238754,-500.0,0.00015342,2]
[323085221,1713634238764,-222.86536273,0.00015342,2]
[323085223,1713634238773,-612.83,0.00015342,2]
[323085225,1713634238783,-500.0,0.00015342,2]
[323085227,1713634238793,-500.0,0.00015342,2]
[323085228,1713634238802,-500.0,0.00015342,2]
[323085231,1713634238812,-500.0,0.00015342,2]
[323085233,1713634238822,-500.0,0.00015342,2]
[323085234,1713634238832,-500.0,0.00015342,2]
[323085236,1713634238842,-542.15,0.00015342,2]
[323085238,1713634238851,-438.46470829,0.00015342,2]
[323085239,1713634238861,-585.78,0.00015342,2]
[323085240,1713634238871,-590.03461281,0.00015342,2]
[323085241,1713634238882,-500.0,0.00015342,2]
[323085242,1713634238892,-500.0,0.00015342,2]
[323085243,1713634238901,-2244.87422575,0.000155,2]
[323085244,1713634238911,-3104.69160782,0.000155,2]
[323085245,1713634238923,-327.22642136,0.000155,2]
[323085313,1713634239481,-850.96945315,0.000155,2]
[323085314,1713634239543,-434.4653102,0.000155,2]
[323085315,1713634239555,-2665.6296886,0.000155,2]
[323085316,1713634239718,-84206.92316994,0.000155,2]
[323085317,1713634239730,-598.83533567,0.000155,2]
[323085318,1713634239742,-318.93677363,0.000155,2]
[323085319,1713634239895,-303.94329984,0.000155,2]
[323085320,1713634239907,-1428.47025564,0.000155,2]
[323085321,1713634239919,-2478.91926119,0.000155,2]
[323085371,1713634242590,-327.444582,0.000155,2]
[323085376,1713634242650,-1878.8,0.000155,2]
[323085379,1713634242662,-4575.44,0.000155,2]
[323085381,1713634242674,-1687.9289,0.000155,2]
[323085385,1713634242708,-4700.39499999,0.000155,2]
[323085421,1713634245596,-52346.1333,0.000145,2]
[323085422,1713634245766,-557.35347917,0.000145,2]
[323085423,1713634245779,-14754.12724092,0.000145,2]
[323085424,1713634245825,-3349.50649827,0.000145,2]
[323085429,1713634290920,150.0,0.00027274,120]
[323085431,1713634305687,571.21241525,0.00014489,7]
[323085432,1713634321697,352.46173924,0.00014498,7]
[323085435,1713634558552,152.21665558,0.00027,120]
[323085439,1713634743498,9196.23944694,0.00028,120]
[323085441,1713634772503,-155.0,0.00011962,2]
[323085442,1713634772734,-155.0,0.00011963,2]
[323085443,1713634772760,-223.25,0.00011965,2]
[323085444,1713634821649,-784.39215876,0.00013031,2]
[323085445,1713634821677,-571.23736106,0.00013032,2]
[323085446,1713634821703,-201.78895231,0.00013035,2]
[323085447,1713634821728,-156.37789765,0.00013035,2]
[323085448,1713634821751,-17830.74877155,0.00013036,2]
[323085449,1713634842076,-544.54514133,0.00013036,2]
[323085452,1713635211112,-535.93386891,0.00013034,2]
[323085453,1713635211132,-2293.87335594,0.00013036,2]
[323085456,1713635304555,212.08,0.00011485,2]
[323085488,1713635431635,-503.62734077,0.00013033,2]
[323085489,1713635431645,-302.39707843,0.00013036,2]
[323085490,1713635431658,-763.69823021,0.00013036,2]
[323085491,1713635431746,-1549.54146102,0.00013036,2]
[323085492,1713635431758,-1496.21114978,0.00013036,2]
[323085493,1713635431857,-5270.4726,0.00013036,2]
[323085494,1713635431868,-1453.06573575,0.00013036,2]
[323085495,1713635431877,-687.10463362,0.00013037,2]
[323085496,1713635431886,-797.86741522,0.00013038,2]
[323085497,1713635431894,-61.76221541,0.00013367,2]
[323085498,1713635431905,-188.23778459,0.00013367,2]
[323085499,1713635431914,-1279.15,0.00013368,3]
[323085500,1713635431926,-1000.0,0.00013382,2]
[323085501,1713635431935,-259.87,0.00013699,2]
[323085502,1713635431944,-212.08,0.00013749,2]
[323085503,1713635431954,-336.35235969,0.00013828,2]
[323085504,1713635431965,-601.80764031,0.00013828,2]
[323085505,1713635431975,-150.99,0.00013828,2]
[323085506,1713635431984,-676.31,0.00013828,2]
[323085507,1713635431993,-150.0,0.00013863,2]
[323085508,1713635432001,-1329.09738469,0.00013927,2]
[323085509,1713635432013,-1799.75261531,0.00013927,2]
[323085510,1713635432022,-299.99,0.00013927,2]
[323085511,1713635432032,-151.96,0.00014062,2]
[323085512,1713635432041,-2498.5,0.00014062,2]
[323085514,1713635432050,-150.99,0.00014062,2]
[323085516,1713635432060,-26088.67416577,0.00014128,2]
[323085518,1713635432071,-31545.3603763,0.00014128,2]
[323085520,1713635432083,-6044.58057172,0.00014128,2]
[323085522,1713635432094,-21172.31818621,0.00014128,2]
[323085524,1713635432103,-20628.9887,0.00014128,2]
[323085526,1713635432111,-616.3485,0.00014128,2]
[323085528,1713635432120,-2302.10398707,0.00014129,2]
[323085530,1713635432129,-151.96,0.00014144,2]
[323085532,1713635432139,-151.96,0.00014225,2]
[323085534,1713635432148,-20392.12136713,0.00014228,2]
[323085941,1713635437684,-2650.77482546,0.00014228,2]
[323085942,1713635437696,-1732.51219546,0.00014228,2]
[323085943,1713635437707,-9806.25821411,0.00014228,2]
[323085944,1713635437718,-12975.29438681,0.00014228,2]
[323085945,1713635437730,-6712.92474892,0.00014228,2]
[323085946,1713635437742,-624.69887911,0.00014228,2]
[323085947,1713635437753,-10006.99985559,0.00014228,2]
[323085948,1713635437782,-169688.78803199,0.00014228,2]
[323085949,1713635437791,-499.99,0.00014229,2]
[323085950,1713635437800,-151.96,0.00014306,2]
[323085951,1713635437809,-151.96,0.00014388,2]
[323085952,1713635437820,-896.4698,0.000144,2]
[323085953,1713635437829,-151.96,0.00014469,2]
[323085954,1713635437839,-4113.11742697,0.00014485,2]
[323085955,1713635437848,-387.1264966,0.00014486,2]
[323085956,1713635437857,-697.08044467,0.00014498,2]
[323085957,1713635437867,-190.34598721,0.00014498,2]
[323085958,1713635437877,-164.29423485,0.00014498,2]
[323085959,1713635437886,-200.64323917,0.00014498,2]
[323085960,1713635437896,-1774.21776063,0.00014498,2]
[323085961,1713635437906,-780.34286168,0.00014498,2]
[323085962,1713635437916,-155.355736,0.00014498,2]
[323085963,1713635437929,-685.59588165,0.00014498,2]
[323085964,1713635437939,-161.29586727,0.00014498,2]
[323085965,1713635437948,-112813.61558164,0.000145,2]
[323085966,1713635437958,-195.27,0.00014508,2]
[323085967,1713635437967,-151.96,0.00014551,2]
[323085968,1713635437977,-151.96,0.00014632,2]
[323085969,1713635437986,-18011.3888777,0.000147,2]
[323085970,1713635437996,-400.0,0.000147,5]
[323085971,1713635438005,-151.96,0.00014714,2]
[323085972,1713635438014,-151.96,0.00014795,2]
[323085974,1713635438023,-160.46,0.00014795,2]
[323085975,1713635438033,-900.0,0.000148,5]
[323085977,1713635438042,-1400.0,0.000149,5]
[323085979,1713635438051,-426.81421058,0.00015,2]
[323085981,1713635438061,-256.67025868,0.00015,2]
[323085983,1713635438070,-155.27388055,0.00015,2]
[323085985,1713635438080,-1000.0,0.00015055,2]
[323085987,1713635438090,-302.09,0.00015056,2]
[323085988,1713635438100,-302.09,0.0001506,2]
[323085989,1713635438109,-302.09,0.00015064,2]
[323085990,1713635438120,-302.09,0.00015068,2]
[323085991,1713635438129,-210.20793595,0.00015068,2]
[323085992,1713635438138,-500.0,0.00015068,2]
[323085993,1713635438147,-500.0,0.00015068,2]
[323085994,1713635438157,-500.0,0.00015068,2]
[323085995,1713635438166,-150.0,0.00015068,2]
[323085996,1713635438179,-500.0,0.00015068,2]
[323085997,1713635438188,-503.25,0.00015068,2]
[323085998,1713635438197,-500.0,0.00015068,2]
[323085999,1713635438207,-693.33,0.00015068,2]
[323086000,1713635438216,-500.0,0.00015068,2]
[323086001,1713635438225,-500.0,0.00015068,2]
[323086002,1713635438234,-526.1,0.00015068,2]
[323086003,1713635438244,-500.0,0.00015068,2]
[323086004,1713635438253,-314.82744546,0.00015068,2]
[323086005,1713635438262,-500.0,0.00015068,2]
[323086006,1713635438271,-500.0,0.00015068,2]
[323086007,1713635438281,-500.0,0.00015068,2]
[323086008,1713635438290,-500.0,0.00015068,2]
[323086009,1713635438299,-571.99470656,0.00015068,2]
[323086010,1713635438308,-393.43620425,0.00015068,2]
[323086011,1713635438317,-500.0,0.00015068,2]
[323086012,1713635438326,-500.0,0.00015068,2]
[323086013,1713635438335,-500.0,0.00015068,2]
[323086014,1713635438345,-2012.55,0.00015068,2]
[323086015,1713635438354,-500.0,0.00015068,2]
[323086016,1713635438364,-341.98101175,0.00015068,2]
[323086017,1713635438373,-587.29,0.00015068,2]
[323086018,1713635438383,-500.0,0.00015068,2]
[323086019,1713635438393,-500.0,0.00015068,2]
[323086020,1713635438403,-500.0,0.00015068,2]
[323086021,1713635438412,-500.0,0.00015068,2]
[323086022,1713635438422,-500.0,0.00015068,2]
[323086023,1713635438437,-500.0,0.00015068,2]
[323086024,1713635438446,-248.48882508,0.00015068,2]
[323086025,1713635438455,-500.0,0.00015068,2]
[323086026,1713635438465,-500.0,0.00015068,2]
[323086027,1713635438474,-500.0,0.00015068,2]
[323086028,1713635438483,-519.56,0.00015068,2]
[323086029,1713635438493,-500.0,0.00015068,2]
[323086030,1713635438502,-614.12,0.00015068,2]
[323086031,1713635438512,-191.58898328,0.00015068,2]
[323086032,1713635438521,-500.0,0.00015068,2]
[323086033,1713635438531,-500.0,0.00015068,2]
[323086034,1713635438541,-302.09,0.00015072,2]
[323086035,1713635438550,-302.09,0.00015076,2]
[323086036,1713635438560,-302.09,0.0001508,2]
[323086037,1713635438570,-302.09,0.00015084,2]
[323086038,1713635438580,-302.09,0.00015088,2]
[323086039,1713635438590,-302.09,0.00015092,2]
[323086040,1713635438599,-302.09,0.00015095,2]
[323086041,1713635438609,-2302.10398707,0.00015096,2]
[323086042,1713635438618,-302.09,0.00015099,2]
[323086043,1713635438627,-302.09,0.00015103,2]
[323086044,1713635438637,-302.09,0.00015107,2]
[323086045,1713635438646,-302.09,0.00015111,2]
[323086046,1713635438656,-302.09,0.00015115,2]
[323086047,1713635438668,-302.09,0.00015119,2]
[323086048,1713635438681,-302.09,0.00015123,2]
[323086049,1713635438691,-302.09,0.00015127,2]
[323086050,1713635438701,-302.09,0.00015131,2]
[323086051,1713635438711,-189.75951614,0.00015204,2]
[323086052,1713635438720,-759.90513449,0.00015207,2]
[323086053,1713635438730,-518.29,0.0001526,2]
[323086054,1713635438741,-837.88,0.0001526,2]
[323086055,1713635438751,-154.51507293,0.0001529,2]
[323086056,1713635438761,-150.2,0.0001529,2]
[323086057,1713635438771,-150.2,0.0001529,2]
[323086058,1713635438781,-150.2,0.0001529,2]
[323086059,1713635438790,-150.2,0.0001529,2]
[323086060,1713635438800,-150.2,0.0001529,2]
[323086061,1713635438810,-758.4647041,0.000153,2]
[323086062,1713635438819,-29530.32697787,0.000153,5]
[323086063,1713635438834,-387.44694948,0.000153,5]
[323086064,1713635438846,-6949.48210294,0.000153,5]
[323086065,1713635438858,-6852.2,0.000153,5]
[323086066,1713635438880,-1629.68005117,0.000153,5]
[323086067,1713635438892,-352396.30880384,0.000153,5]
[323086068,1713635438902,-759.90513447,0.00015304,2]
[323086069,1713635438911,-500.0,0.00015342,2]
[323086070,1713635438920,-500.0,0.00015342,2]
[323086071,1713635438934,-500.0,0.00015342,2]
[323086072,1713635438944,-150.0,0.00015342,2]
[323086073,1713635438954,-500.0,0.00015342,2]
[323086074,1713635438963,-693.33,0.00015342,2]
[323086075,1713635438972,-500.0,0.00015342,2]
[323086076,1713635438982,-500.0,0.00015342,2]
[323086077,1713635438991,-217.85,0.00015342,2]
[323086078,1713635439001,-500.0,0.00015342,2]
[323086079,1713635439011,-500.0,0.00015342,2]
[323086080,1713635439021,-500.0,0.00015342,2]
[323086081,1713635439030,-2012.55,0.00015342,2]
[323086082,1713635439039,-500.0,0.00015342,2]
[323086083,1713635439048,-587.29,0.00015342,2]
[323086084,1713635439058,-500.0,0.00015342,2]
[323086085,1713635439068,-500.0,0.00015342,2]
[323086086,1713635439077,-500.0,0.00015342,2]
[323086087,1713635439086,-500.0,0.00015342,2]
[323086088,1713635439095,-500.0,0.00015342,2]
[323086089,1713635439105,-370.128,0.00015342,2]
[323086090,1713635439114,-519.56,0.00015342,2]
[323086091,1713635439123,-614.12,0.00015342,2]
[323086092,1713635439132,-500.0,0.00015342,2]
[323086093,1713635439141,-500.0,0.00015342,2]
[323086094,1713635439150,-333.999657,0.00015342,2]
[323086095,1713635439159,-150.2,0.0001539,2]
[323086096,1713635439169,-837.88,0.00015394,2]
[323086097,1713635439181,-300.0,0.00015394,2]
[323086098,1713635439190,-529.7,0.00015394,2]
[323086099,1713635439200,-2883.9731,0.000154,2]
[323086100,1713635439209,-8968.0208,0.000154,2]
[323086101,1713635439219,-318.32100622,0.000154,2]
[323086102,1713635439228,-5570.24617017,0.000154,2]
[323086103,1713635439238,-177.9966894,0.000154,2]
[323086104,1713635439248,-759.90513447,0.000154,2]
[323086105,1713635439259,-174.00175242,0.00015413,2]
[323086106,1713635439269,-154.51507293,0.0001549,2]
[323086107,1713635439278,-150.2,0.0001549,2]
[323086108,1713635439287,-150.2,0.0001549,2]
[323086109,1713635439296,-150.2,0.0001549,2]
[323086111,1713635439306,-150.2,0.0001549,2]
[323086112,1713635439315,-150.2,0.0001549,2]
[323086113,1713635439324,-150.2,0.0001549,2]
[323086114,1713635439333,-150.2,0.0001549,2]
[323086115,1713635439342,-150.2,0.0001549,2]
[323086117,1713635439352,-150.2,0.0001549,2]
[323086119,1713635439361,-150.2,0.0001549,2]
[323086121,1713635439370,-150.2,0.0001549,2]
[323086123,1713635439380,-150.2,0.0001549,2]
[323086125,1713635439389,-150.2,0.0001549,2]
[323086127,1713635439398,-150.2,0.0001549,2]
[323086129,1713635439408,-150.2,0.0001549,2]
[323086131,1713635439417,-150.2,0.0001549,2]
[323086134,1713635439427,-150.2,0.0001549,2]
[323086136,1713635439437,-150.2,0.0001549,2]
[323086138,1713635439447,-150.2,0.0001549,2]
[323086139,1713635439457,-150.2,0.0001549,2]
[323086140,1713635439466,-150.2,0.0001549,2]
[323086141,1713635439475,-1078.86842501,0.00015499,2]
[323086142,1713635439484,-312042.8512382,0.000155,2]
[323086143,1713635439496,-4843.61870921,0.000155,2]
[323086144,1713635439514,-2777.48470747,0.000155,2]
[323086145,1713635439526,-857.75,0.000155,2]
[323086146,1713635439537,-1862.50161371,0.000155,2]
[323086157,1713635441866,-330.867461,0.000155,2]
[323086158,1713635441878,-2725.1724191,0.000155,2]
[323086159,1713635441889,-296.19995991,0.000155,2]
[323086160,1713635441902,-1973.83331714,0.000155,2]
[323086161,1713635441913,-527.670627,0.000155,2]
[323086162,1713635441924,-4884.40171292,0.000155,2]
[323086163,1713635441980,-489.59093316,0.000155,2]
[323086164,1713635442094,-723.42,0.000155,2]
[323086204,1713635442826,-8001.68923625,0.000155,2]
[323086205,1713635442883,-743.0334,0.000155,2]
[323086306,1713635445771,-500.0,0.00015068,2]
[323086308,1713635445781,-78.55555676,0.000155,2]
[323086310,1713635445792,-4062.91939421,0.000155,2]